[Event "POR-ch Women Absolute 2019"]
[Site "Portimao"]
[Date "2019.09.09"]
[Round "2.1"]
[White "Pipiras, Filipa Fortuna"]
[Black "Silva, Ana Ines Teixeira Da"]
[Result "0-1"]
[ECO "A43"]
[WhiteElo "1965"]
[BlackElo "1738"]
[Annotator "NA RC"]
[PlyCount "94"]
[EventDate "2019.09.08"]
[EventType "swiss"]
[EventCountry "POR"]
[SourceTitle "playchess.com"]
[Source "ChessBase"]
[SourceQuality "1"]
[TimeControl "5400+30"]

1. d4 {[%emt 0:04:59]} Nf6 {[%emt 0:00:00]} 2. Nf3 {[%emt 0:01:04]} c5 {[%emt 0:01:18]} 3. d5 {[%emt 0:00:56]} g6 {[%emt 0:03:34]} 4. Nc3 {[%emt 0:02:22]} d6 {[%emt 0:01:52]} 5. e4 {[%emt 0:00:51]} Bg7 {[%emt 0:02:16]} 6. Bd3 {[%emt 0:01:04]} O-O {[%emt 0:00:56]} 7. O-O {[%emt 0:00:15]} Bg4 {[%emt 0:07:45]} 8. h3 {[%emt 0:03:08]} Bxf3 {[%emt 0:00:11]} 9. Qxf3 {[%emt 0:00:14]} Nbd7 {[%emt 0:08:20]} 10. Qd1 {[%emt 0:05:20]} a6 {[%emt 0:04:10]} 11. a4 {[%emt 0:03:19]} b6 {[%emt 0:00:39]} 12. Be3 {[%emt 0:03:27]} Qc7 {[%emt 0:01:29]} 13. Qe2 {[%emt 0:03:04]} Qb7 {[%emt 0:07:02]} 14. f4 {[%emt 0:04:28]} Ne8 {[%emt 0:03:01]} 15. Bf2 {[%emt 0:02:58]} Nc7 {[%emt 0:02:19]} 16. Bg3 {[%emt 0:07:24]} Rab8 {[%emt 0:04:11]} 17. Nd1 {[%emt 0:21:00]} b5 {[%emt 0:04:34]} 18. c4 {[%emt 0:03:20]} bxc4 {[%emt 0:07:30]} 19. Bxc4 {[%emt 0:00:08]} Bxb2 {[%emt 0:03:05]} 20. Nxb2 {[%emt 0:00:35]} Qxb2 {[%emt 0:00:07]} 21. Bxa6 {[%emt 0:05:51]} Nxa6 {[%emt 0:04:59]} 22. Qxa6 {[%emt 0:00:07]} Qd4+ {[%emt 0:00:33]} 23. Kh2 {[%emt 0:00:32]} Qxe4 {[%emt 0:01:17]} 24. Rfe1 {[%emt 0:01:38]} Qxd5 {[%emt 0:01:44]} 25. Rxe7 {[%emt 0:02:42]} Rb2 {[%emt 0:02:40]} 26. Re2 {[%emt 0:01:53]} Nb8 {[%emt 0:03:10]} 27. Qxd6 {[%emt 0:04:22]} Qxd6 {[%emt 0:00:09]} 28. Rxb2 {[%emt 0:00:06]} Nc6 {[%emt 0:00:55]} 29. Rb6 {[%emt 0:00:36]} Qd4 {[%emt 0:01:34]} 30. Rc1 {[%emt 0:02:50]} Ne7 {[%emt 0:01:11]} 31. Rb5 {[%emt 0:00:52]} Rc8 {[%emt 0:01:00]} 32. a5 {[%emt 0:00:47]} Nf5 {[%emt 0:05:07]} 33. Rb3 {[%emt 0:04:36]} c4 {[%emt 0:02:24]} 34. Ra3 {[%emt 0:01:02]} c3 {[%emt 0:00:39]} 35. a6 {[%emt 0:00:23]} Nxg3 {[%emt 0:01:41]} 36. a7 {[%emt 0:00:18]} Ra8 {[%emt 0:00:50]} 37. Raxc3 {[%emt 0:01:07]} Nf1+ {[%emt 0:01:14]} 38. Kh1 {[%emt 0:00:12]} Rxa7 {[%emt 0:01:09]} 39. Rc8+ {[%emt 0:00:09]} Kg7 {[%emt 0:00:04]} 40. Rxf1 {[%emt 0:00:07]} Ra1 {[%emt 0:00:49]} 41. Rxa1 {[%emt 0:00:25]} Qxa1+ {[%emt 0:00:06]} 42. Kh2 {[%emt 0:00:13]} Qf1 {[%emt 0:00:23]} 43. Kg3 {[%emt 0:00:15]} h5 {[%emt 0:00:42]} 44. Rc7 {[%emt 0:02:07]} h4+ {[%emt 0:02:18]} 45. Kg4 {[%emt 0:00:26]} Qf2 {[%emt 0:00:35]} 46. Rc3 {[%emt 0:00:23]} Kh6 {[%emt 0:00:36]} 47. Rf3 {[%emt 0:00:57]} f5# {[%emt 0:00:08]} 0-1

[Event "POR-ch Women Absolute 2019"]
[Site "Portimao"]
[Date "2019.09.09"]
[Round "2.2"]
[White "Silva, Mariana Sofia T."]
[Black "Avelino, Camila Biscaya"]
[Result "1/2-1/2"]
[ECO "A05"]
[WhiteElo "1882"]
[BlackElo "1722"]
[Annotator "NA RC"]
[PlyCount "71"]
[EventDate "2019.09.08"]
[EventType "swiss"]
[EventCountry "POR"]
[SourceTitle "playchess.com"]
[Source "ChessBase"]
[SourceQuality "1"]
[TimeControl "5400+30"]

1. Nf3 {[%emt 0:00:34]} Nf6 {[%emt 0:00:04]} 2. g3 {[%emt 0:00:08]} g6 {[%emt 0:00:49]} 3. b3 {[%emt 0:00:13]} Bg7 {[%emt 0:00:49]} 4. Bb2 {[%emt 0:00:07]} O-O {[%emt 0:00:50]} 5. Bg2 {[%emt 0:00:09]} d5 {[%emt 0:07:54]} 6. c4 {[%emt 0:01:06]} c6 {[%emt 0:06:14]} 7. O-O {[%emt 0:01:57]} Nbd7 {[%emt 0:12:09]} 8. d3 {[%emt 0:05:58]} Qb6 {[%emt 0:11:58]} 9. Nbd2 {[%emt 0:05:27]} dxc4 {[%emt 0:01:42]} 10. Nxc4 {[%emt 0:00:55]} Qd8 {[%emt 0:00:43]} 11. Qd2 {[%emt 0:07:17]} Nb6 {[%emt 0:01:31]} 12. a4 {[%emt 0:17:31]} Be6 {[%emt 0:06:04]} 13. a5 {[%emt 0:05:04]} Nbd5 {[%emt 0:06:15]} 14. a6 {[%emt 0:09:30]} b6 {[%emt 0:04:07]} 15. Nd4 {[%emt 0:04:23]} Bd7 {[%emt 0:02:01]} 16. Ne5 {[%emt 0:05:55]} c5 {[%emt 0:04:50]} 17. Ndc6 {[%emt 0:10:11]} Bxc6 {[%emt 0:06:22]} 18. Nxc6 {[%emt 0:00:07]} Qd7 {[%emt 0:02:19]} 19. Ne5 {[%emt 0:00:47]} Qb5 {[%emt 0:00:25]} 20. Qc2 {[%emt 0:03:50]} Rad8 {[%emt 0:04:10]} 21. Qc4 {[%emt 0:01:28]} Qxc4 {[%emt 0:00:20]} 22. bxc4 {[%emt 0:00:10]} Nb4 {[%emt 0:05:33]} 23. Nf3 {[%emt 0:05:33]} Ne8 {[%emt 0:02:27]} 24. Bxg7 {[%emt 0:00:13]} Kxg7 {[%emt 0:00:08]} 25. Nd2 {[%emt 0:02:12]} Nc7 {[%emt 0:00:32]} 26. Bb7 {[%emt 0:02:30]} Ne6 {[%emt 0:00:59]} 27. Nb3 {[%emt 0:04:01]} Nd4 {[%emt 0:01:12]} 28. Nxd4 {[%emt 0:00:07]} Rxd4 {[%emt 0:00:05]} 29. Rab1 {[%emt 0:01:58]} Rfd8 {[%emt 0:02:02]} 30. Rb2 {[%emt 0:02:17]} R4d6 {[%emt 0:01:36]} 31. Kg2 {[%emt 0:00:59]} Kf6 {[%emt 0:02:36]} 32. Kf3 {[%emt 0:01:36]} Re6 {[%emt 0:02:05]} 33. Rfb1 {[%emt 0:00:52]} Red6 {[%emt 0:01:15]} 34. Ra1 {[%emt 0:00:28]} Ke5 {[%emt 0:01:42]} 35. Ke3 {[%emt 0:00:48]} Kf5 {[%emt 0:01:27] Ke4+ Ke5+} 36. Kf3 {[%emt 0:00:22]} 1/2-1/2

[Event "POR-ch Women Absolute 2019"]
[Site "Portimao"]
[Date "2019.09.09"]
[Round "2.3"]
[White "Monteiro, Sara Cristina da Sil"]
[Black "Jorge, Rita Maria Osorio"]
[Result "0-1"]
[ECO "D04"]
[WhiteElo "1728"]
[BlackElo "1957"]
[Annotator "NA RC"]
[PlyCount "101"]
[EventDate "2019.09.08"]
[EventType "swiss"]
[EventCountry "POR"]
[SourceTitle "playchess.com"]
[Source "ChessBase"]
[SourceQuality "1"]
[TimeControl "5400+30"]

1. d4 {[%emt 0:00:00]} d5 {[%emt 0:00:00]} 2. Nf3 {[%emt 0:00:00]} Nf6 {[%emt 0:00:00]} 3. e3 {[%emt 0:00:56]} c5 {[%emt 0:03:46]} 4. c3 {[%emt 0:03:18]} e6 {[%emt 0:05:25]} 5. Ne5 {[%emt 0:05:35]} Bd6 {[%emt 0:03:56]} 6. Bb5+ {[%emt 0:01:51]} Bd7 {[%emt 0:01:35]} 7. Nxd7 {[%emt 0:02:36]} Nbxd7 {[%emt 0:00:17]} 8. Nd2 {[%emt 0:02:05]} O-O {[%emt 0:01:20]} 9. O-O {[%emt 0:01:37]} a6 {[%emt 0:04:18]} 10. Bd3 {[%emt 0:03:37]} Qc7 {[%emt 0:03:33]} 11. g3 {[%emt 0:16:49]} b5 {[%emt 0:13:57]} 12. dxc5 {[%emt 0:09:21]} Bxc5 {[%emt 0:09:49]} 13. e4 Ne5 14. Bc2 {[%emt 0:05:40]} Rad8 {[%emt 0:11:47]} 15. Qe2 {[%emt 0:06:54]} d4 {[%emt 0:13:08]} 16. cxd4 {[%emt 0:04:22]} Bxd4 {[%emt 0:00:19]} 17. Bb3 {[%emt 0:07:41]} Qc6 {[%emt 0:04:22]} 18. Kg2 {[%emt 0:04:30]} Bb6 {[%emt 0:05:53]} 19. h3 {[%emt 0:09:12]} Rd4 {[%emt 0:11:15]} 20. f3 {[%emt 0:04:59]} Nd3 {[%emt 0:02:18]} 21. e5 {[%emt 0:00:58]} Nd7 {[%emt 0:00:29]} 22. Ne4 {[%emt 0:01:31]} N7xe5 {[%emt 0:00:58]} 23. Be3 {[%emt 0:00:51]} Rxe4 {[%emt 0:01:08]} 24. fxe4 {[%emt 0:03:22]} Qxe4+ {[%emt 0:00:02]} 25. Kh2 {[%emt 0:01:19]} Qxe3 {[%emt 0:01:07]} 26. Qxe3 {[%emt 0:00:42]} Bxe3 {[%emt 0:00:04]} 27. a4 {[%emt 0:02:21]} Nxb2 {[%emt 0:01:36]} 28. Rae1 {[%emt 0:00:36]} Bd4 {[%emt 0:00:10]} 29. Re4 {[%emt 0:00:17]} Nc6 {[%emt 0:00:47]} 30. Rc1 {[%emt 0:00:12]} Ne5 {[%emt 0:00:25]} 31. Kg2 {[%emt 0:00:58]} Rd8 {[%emt 0:00:40]} 32. Rxd4 {[%emt 0:00:18]} Rb8 {[%emt 0:00:22]} 33. axb5 {[%emt 0:00:37]} axb5 {[%emt 0:00:01]} 34. Rc7 {[%emt 0:01:16]} g6 {[%emt 0:00:22]} 35. Rc5 {[%emt 0:00:10]} Nbd3 {[%emt 0:00:47]} 36. Rc7 {[%emt 0:00:24]} Ra8 {[%emt 0:00:38]} 37. Rb7 {[%emt 0:00:22]} b4 {[%emt 0:00:45]} 38. Rd6 {[%emt 0:00:29]} Ra3 {[%emt 0:00:18]} 39. Rd8+ {[%emt 0:00:16]} Kg7 {[%emt 0:00:01]} 40. Bxe6 {[%emt 0:00:01]} Nc5 {[%emt 0:00:53]} 41. Bc8 {[%emt 0:01:52]} Nxb7 {[%emt 0:00:10]} 42. Bxb7 {[%emt 0:00:03]} Ra2+ {[%emt 0:00:43]} 43. Kf1 {[%emt 0:00:20]} Nc4 {[%emt 0:01:23]} 44. Rd4 {[%emt 0:00:48]} Ne3+ {[%emt 0:00:08]} 45. Kg1 {[%emt 0:00:17]} b3 {[%emt 0:00:17]} 46. Rb4 {[%emt 0:00:40]} b2 {[%emt 0:00:18]} 47. Be4 {[%emt 0:00:19]} Ra1+ {[%emt 0:00:53]} 48. Kf2 {[%emt 0:00:16]} Nd1+ {[%emt 0:00:07]} 49. Kf3 {[%emt 0:00:48]} Ra3+ {[%emt 0:01:01]} 50. Kf4 {[%emt 0:00:54]} Nc3 {[%emt 0:00:31]} 51. Ke5 0-1

[Event "POR-ch Women Absolute 2019"]
[Site "Portimao"]
[Date "2019.09.09"]
[Round "2.4"]
[White "Soares, Sara Joana De Moura "]
[Black "Leite, Marta Sofia Carvalho"]
[Result "1-0"]
[ECO "D06"]
[WhiteElo "1533"]
[BlackElo "1722"]
[Annotator "NA RC"]
[PlyCount "67"]
[EventDate "2019.09.08"]
[EventType "swiss"]
[EventCountry "POR"]
[SourceTitle "playchess.com"]
[Source "ChessBase"]
[SourceQuality "1"]
[TimeControl "5400+30"]

1. d4 {[%emt 0:00:48]} d5 {[%emt 0:00:00]} 2. c4 {[%emt 0:00:29]} Nf6 {[%emt 0:00:02]} 3. cxd5 {[%emt 0:00:32]} Qxd5 {[%emt 0:01:17]} 4. Nc3 {[%emt 0:00:58]} Qa5 {[%emt 0:04:40]} 5. e3 {[%emt 0:06:14]} e6 {[%emt 0:07:07]} 6. Bd2 {[%emt 0:01:45]} c6 {[%emt 0:07:57]} 7. Bd3 {[%emt 0:03:47]} Bb4 {[%emt 0:04:47]} 8. Nge2 {[%emt 0:01:15]} O-O {[%emt 0:00:36]} 9. a3 {[%emt 0:03:02]} Bxc3 {[%emt 0:01:19]} 10. Nxc3 {[%emt 0:00:42]} Qc7 {[%emt 0:06:08]} 11. Qc2 {[%emt 0:07:43]} Nbd7 {[%emt 0:07:17]} 12. Ne4 {[%emt 0:08:53]} Nxe4 {[%emt 0:05:04]} 13. Bxe4 {[%emt 0:00:01]} Nf6 {[%emt 0:00:11]} 14. Bf3 {[%emt 0:02:20]} Rd8 {[%emt 0:01:25]} 15. O-O {[%emt 0:00:44]} e5 {[%emt 0:02:55]} 16. Bc3 {[%emt 0:11:47]} exd4 {[%emt 0:01:10]} 17. Bxd4 {[%emt 0:00:30]} Ng4 {[%emt 0:09:36]} 18. g3 {[%emt 0:01:31]} Qd6 {[%emt 0:11:15]} 19. h3 {[%emt 0:03:23]} Nf6 {[%emt 0:11:23]} 20. Rfd1 {[%emt 0:07:06]} Qe6 {[%emt 0:06:35]} 21. Bg2 {[%emt 0:04:34]} Nd5 {[%emt 0:03:09]} 22. Bxa7 {[%emt 0:02:20]} Rxa7 {[%emt 0:03:10]} 23. e4 {[%emt 0:00:20]} Qg6 {[%emt 0:01:39]} 24. Qc5 {[%emt 0:01:02]} Ra8 {[%emt 0:02:38]} 25. exd5 {[%emt 0:00:49]} cxd5 {[%emt 0:00:05]} 26. Rxd5 {[%emt 0:01:22]} Be6 {[%emt 0:00:59]} 27. Rxd8+ {[%emt 0:01:07]} Rxd8 {[%emt 0:00:05]} 28. Qe7 {[%emt 0:01:20]} Qf6 {[%emt 0:00:44]} 29. Qxb7 {[%emt 0:00:24]} Rd2 {[%emt 0:00:36]} 30. Qb8+ {[%emt 0:00:15]} Rd8 {[%emt 0:00:05]} 31. Qb4 {[%emt 0:00:07]} Qe5 {[%emt 0:00:48]} 32. Qe7 {[%emt 0:01:12]} Rb8 {[%emt 0:00:37]} 33. Rd1 {[%emt 0:00:28]} Qa5 {[%emt 0:00:32]} 34. b4 1-0

[Event "POR-ch Women Absolute 2019"]
[Site "Portimao"]
[Date "2019.09.09"]
[Round "3.1"]
[White "Silva, Ana Ines Teixeira Da"]
[Black "Silva, Mariana Sofia T."]
[Result "0-1"]
[ECO "B25"]
[WhiteElo "1738"]
[BlackElo "1882"]
[Annotator "NA RC"]
[PlyCount "64"]
[EventDate "2019.09.08"]
[EventType "swiss"]
[EventCountry "POR"]
[SourceTitle "playchess.com"]
[Source "ChessBase"]
[SourceQuality "1"]
[TimeControl "5400+30"]

{[%evp 8,64,8,6,6,-1,-8,-4,0,32767,-3,32767,32767,32767,32767,-28,33,32767,32767,32767,43,39,62,60,86,72,156,57,77,-106,-110,-108,-3,-14,-6,-30,55,0,52,0,0,32767,32767,32767,32767,0,0,0,0,0,0,0,0,-1101,-1349,-29996,-29997,-29997,-29998]} 1. e4 {[%emt 0:00:18]} c5 {[%emt 0:00:00]} 2. Nc3 {[%emt 0:00:15]} Nc6 {[%emt 0:00:00]} 3. g3 {[%emt 0:00:10]} g6 {[%emt 0:00:00]} 4. Bg2 {[%emt 0:00:05]} Bg7 {[%emt 0:00:07]} 5. d3 {[%emt 0:00:15]} d6 {[%emt 0:00:09]} 6. f4 {[%emt 0:00:20]} e6 {[%emt 0:00:55]} 7. Be3 {[%emt 0:00:39]} Nge7 {[%emt 0:00:46]} 8. Nf3 {[%emt 0:00:21]} O-O {[%emt 0:00:19]} 9. O-O {[%emt 0:00:14]} b6 {[%emt 0:00:47]} 10. Bf2 {[%emt 0:00:45]} Ba6 {[%emt 0:08:19]} 11. Re1 {[%emt 0:06:14] B25: Closed Sicilian: 3 g3, lines without early Be3} d5 {[%emt 0:03:13]} ({Black should play} 11... Rc8 $11) 12. exd5 {[%emt 0:04:54]} exd5 {[%emt 0:00:20]} 13. d4 {[%emt 0:01:19]} cxd4 {[%emt 0:21:53]} 14. Nxd4 {[%emt 0:00:55]} Na5 $146 {[%emt 0:01:03]} ({Predecessor:} 14... Rc8 15. Nxc6 Nxc6 16. Qxd5 Qxd5 17. Bxd5 Nb4 18. Bb3 {1-0 (39) Cubas,J (2528)-Barbosa,E (2407) Sao Jose dos Campos 2012}) 15. Qf3 {[%emt 0:14:59]} Bb7 {[%emt 0:01:20]} 16. Rad1 {[%emt 0:09:41]} Nc4 {[%emt 0:04:03] [#]} ({Black should play} 16... Re8 $14) 17. b3 {[%emt 0:04:38]} (17. f5 $1 $16 {[%cal Rf5f6]} gxf5 {[#]} 18. Rxe7 $1 {[%mdl 512]} (18. Nxf5 Nxf5 19. Qxf5 Nxb2 $16) 18... Qxe7 19. Nxf5) 17... Nd6 {[%emt 0:00:11]} 18. Rxe7 $2 {[%emt 0:06:20]} (18. g4 $16 {keeps the pressure on.}) 18... Qxe7 {[%emt 0:00:38]} 19. Nxd5 {[%emt 0:01:07]} Qd8 {[%emt 0:04:49]} ({Black should play} 19... Bxd5 $17 20. Qxd5 Bxd4 21. Qxd4 (21. Bxd4 Rad8 $15) 21... Nf5) 20. c4 {[%emt 0:01:36]} Re8 {[%emt 0:06:47]} 21. Qd3 {[%emt 0:02:11]} Qb8 {[%emt 0:07:59]} (21... f5 $11) 22. f5 {[%emt 0:06:02]} (22. b4 $14) 22... Kh8 {[%emt 0:06:19]} 23. Be3 {[%emt 0:07:03]} Qc8 {[%emt 0:07:11]} 24. f6 {[%emt 0:04:04]} Bf8 {[%emt 0:00:20]} 25. Rf1 {[%emt 0:07:52]} Rb8 {[%emt 0:04:32]} 26. Bf4 {[%emt 0:02:40]} Qd7 {[%emt 0:06:05]} 27. Qd2 {[%emt 0:03:08]} Ne4 {[%emt 0:10:43]} 28. Bxe4 {[%emt 0:04:15]} Rxe4 {[%emt 0:00:08]} 29. Bxb8 {[%emt 0:00:29]} Rxd4 {[%emt 0:01:02]} 30. Qg5 $2 {[%emt 0:04:41]} (30. Qxd4 $11 Bc5 31. Qxc5 bxc5 32. Re1) 30... Bc5 {[%emt 0:02:52]} 31. Kh1 {[%emt 0:00:11]} Rxd5 {[%emt 0:00:45]} 32. cxd5 {[%emt 0:02:21]} Qxd5+ {[%emt 0:00:14]} 0-1

[Event "POR-ch Women Absolute 2019"]
[Site "Portimao"]
[Date "2019.09.09"]
[Round "3.2"]
[White "Avelino, Camila Biscaya"]
[Black "Soares, Sara Joana De Moura "]
[Result "0-1"]
[ECO "C88"]
[WhiteElo "1722"]
[BlackElo "1533"]
[Annotator "NA RC"]
[PlyCount "50"]
[EventDate "2019.09.08"]
[EventType "swiss"]
[EventCountry "POR"]
[SourceTitle "playchess.com"]
[Source "ChessBase"]
[SourceQuality "1"]
[TimeControl "5400+30"]

1. e4 e5 2. Nf3 Nc6 3. Bb5 a6 4. Ba4 Nf6 5. O-O Be7 6. Re1 b5 7. Bb3 O-O 8. h3 Bb7 9. c3 d5 10. exd5 Nxd5 11. d4 exd4 12. Nxd4 Qd7 13. Nxb5 Na5 14. Bxd5 Bxd5 15. Nxc7 Qxc7 16. Qxd5 Rad8 17. Qf3 Nc4 18. b3 Ne5 19. Qg3 Bd6 20. Bf4 Nf3+ 21. Qxf3 Bxf4 22. c4 Qa5 23. Re4 Be5 24. Qe2 Bxa1 25. a3 Qc7 0-1

[Event "POR-ch Women Absolute 2019"]
[Site "Portimao"]
[Date "2019.09.10"]
[Round "3.3"]
[White "Jorge, Rita Maria Osorio"]
[Black "Pipiras, Filipa Fortuna"]
[Result "1/2-1/2"]
[ECO "B40"]
[WhiteElo "1957"]
[BlackElo "1965"]
[Annotator "NA RC"]
[PlyCount "143"]
[EventDate "2019.09.08"]
[EventType "swiss"]
[EventCountry "POR"]
[SourceTitle "playchess.com"]
[Source "ChessBase"]
[SourceQuality "1"]
[TimeControl "5400+30"]

{[%evp 11,134,-45,6,32767,32767,-8,3,4,0,-5,-12,-39,-19,-18,-12,-10,23,-49,-35,-21,-6,-17,-18,-33,0,0,2,0,0,0,0,0,9,1,23,13,17,32767,32767,6,32767,7,14,12,0,0,12,3,9,19,13,15,29,23,43,34,41,0,51,0,48,0,44,2,15,10,13,6,9,18,12,6,10,5,546,112,334,138,268,148,227,231,245,243,252,233,259,226,364,418,447,454,473,370,425,287,294,319,306,325,308,246,243,247,337,333,404,400,396,401,411,456,407,691,383,391,460,203,195,0,84,70,86,86,91]} 1. e4 {[%emt 0:00:00]} c5 {[%emt 0:03:44]} 2. Nf3 {[%emt 0:00:00]} e6 {[%emt 0:00:19]} 3. b3 {[%emt 0:00:00]} b6 {[%emt 0:01:09]} 4. c4 {[%emt 0:03:49]} Bb7 {[%emt 0:03:25]} 5. Nc3 {[%emt 0:01:59]} Nc6 {[%emt 0:00:21]} 6. Be2 {[%emt 0:07:30] B40: Sicilian: 2...e6, Unusual lines} (6. Bb2 e5 7. Nd5 d6 8. Bd3 g6 9. b4 Nxb4 10. Nxb4 cxb4 11. O-O Ne7 12. Bc2 Bg7 13. d4 O-O 14. Qd2 {0-1 (38) Iskandarov,M (2423)-Bogdanovich,S (2591) Baku 2016}) 6... Nd4 {[%emt 0:05:22]} 7. O-O {[%emt 0:03:31]} d6 {[%emt 0:02:50]} 8. Bb2 $146 {[%emt 0:04:55]} ({Predecessor:} 8. Nxd4 cxd4 9. Nb5 e5 10. d3 Nf6 11. f4 Be7 12. Qe1 a6 13. Na3 Nd7 {0-1 (47) Efanov,N (2398)-Krutko,A (2440) Nizhnij Tagil 2008}) 8... Nf6 {[%emt 0:03:13]} 9. d3 {[%emt 0:00:55]} Be7 {[%emt 0:00:56]} 10. Re1 {[%emt 0:04:19]} O-O {[%emt 0:02:59]} 11. Bf1 {[%emt 0:02:22]} a6 {[%emt 0:08:18]} 12. g3 {[%emt 0:03:50]} Rb8 {[%emt 0:04:36]} 13. Bg2 {[%emt 0:02:42]} Ba8 {[%emt 0:02:34]} 14. e5 {[%emt 0:04:11]} dxe5 {[%emt 0:04:03]} 15. Nxe5 {[%emt 0:02:43]} Qc7 {[%emt 0:04:07]} 16. Bxa8 {[%emt 0:04:35]} Rxa8 {[%emt 0:00:10]} 17. Ne2 {[%emt 0:00:59]} Qxe5 {[%emt 0:13:43]} 18. Nxd4 {[%emt 0:00:17]} Qc7 {[%emt 0:00:23]} 19. Nf3 {[%emt 0:01:37]} Rad8 {[%emt 0:04:15]} 20. Qe2 {[%emt 0:02:06]} Nd7 {[%emt 0:05:40]} 21. d4 {[%emt 0:03:05]} cxd4 {[%emt 0:02:50]} 22. Bxd4 {[%emt 0:06:22]} Bf6 {[%emt 0:02:40]} 23. Rad1 {[%emt 0:02:18]} h6 {[%emt 0:04:16]} 24. Bxf6 {[%emt 0:11:01]} Nxf6 {[%emt 0:00:09]} 25. h3 {[%emt 0:06:13]} Qc5 {[%emt 0:01:34]} 26. Qe5 {[%emt 0:05:42]} Qc6 {[%emt 0:06:08]} 27. Qe3 {[%emt 0:01:11]} b5 {[%emt 0:02:49]} 28. Ne5 {[%emt 0:07:55]} Qc7 {[%emt 0:00:42]} 29. Rc1 {[%emt 0:01:20]} bxc4 {[%emt 0:00:30]} 30. Rxc4 {[%emt 0:00:54]} Qb7 {[%emt 0:00:27]} 31. Rec1 {[%emt 0:00:34]} Nd5 {[%emt 0:01:14]} 32. Qf3 {[%emt 0:01:19]} Rb8 {[%emt 0:03:37]} 33. Nc6 {[%emt 0:02:12]} Rbe8 {[%emt 0:01:30]} 34. Ne5 {[%emt 0:02:24]} Rb8 {[%emt 0:01:53]} 35. Nc6 {[%emt 0:00:49]} Rbe8 {[%emt 0:00:10]} 36. Ne5 {[%emt 0:00:56]} Rb8 {[%emt 0:01:07]} 37. Nd3 {[%emt 0:00:15]} Rfc8 {[%emt 0:02:31]} 38. Nc5 {[%emt 0:00:24]} Qa8 {[%emt 0:00:50]} 39. Nd7 {[%emt 0:00:52]} Rxc4 {[%emt 0:00:14]} 40. bxc4 {[%emt 0:00:49]} Rc8 {[%emt 0:00:57]} 41. Rb1 {[%emt 0:00:57]} Qa7 {[%emt 0:01:03]} 42. Ne5 {[%emt 0:00:22]} Nb6 $2 {[%emt 0:00:55]} (42... Qc7 $11 {and Black has nothing to worry.}) 43. Nxf7 $2 {[%emt 0:00:38]} (43. Nc6 $18 {and White stays clearly on top.} Qb7 {[#]} 44. Rxb6 $1 {[%mdl 576] Deflection} Qxb6 45. Ne7+ {[%mdl 64] Double Attack} Kh7 46. Qd3+ f5 47. Nxc8) 43... Rf8 $2 {[%emt 0:00:41] [#]} (43... Qc7 $16 {was necessary.}) 44. Qc6 {[%emt 0:00:29]} (44. Nxh6+ $1 $18 {[%mdl 512] is more deadly.} gxh6 45. Qg4+ {[%mdl 64] Double Attack} (45. Qe3 Nc8 $11) 45... Kf7 46. Qe4) 44... Rxf7 {[%emt 0:00:25]} (44... Qxf7 $16 {was necessary.} 45. Qxb6 e5) 45. Qxb6 {[%emt 0:00:07]} ({White should play} 45. Rxb6 $18 Qd7 46. Qxd7 (46. Rxa6 Qd1+ 47. Kg2 Qc2 $18) 46... Rxd7 47. Rxe6 (47. Rxa6 Kf7 $18)) 45... Qe7 {[%emt 0:00:28]} 46. Qxa6 {[%emt 0:00:14]} Qc5 {[%emt 0:00:11]} 47. Rf1 {[%emt 0:00:36]} ({Worse is} 47. Qxe6 Qxf2+ {[%mdl 64] Double Attack} 48. Kh1 Qf3+ 49. Kh2 Qf2+ {[%mdl 64] Double Attack} 50. Kh1 Qf3+ 51. Kh2 Qf2+ {[%mdl 64] Double Attack} 52. Kh1 $11) 47... e5 {[%emt 0:00:14]} 48. Qa8+ {[%emt 0:00:12]} Kh7 {[%emt 0:00:09]} 49. Qd5 {[%emt 0:00:12]} Qa7 {[%emt 0:00:30]} (49... Qxd5 $142 50. cxd5 Kg6) 50. c5 {[%emt 0:00:42]} Rc7 {[%emt 0:01:19]} 51. Rc1 {[%emt 0:00:27]} Qa3 {[%emt 0:00:14]} 52. Rc2 {[%emt 0:00:22]} Qa4 {[%emt 0:00:34]} 53. Qd3+ {[%emt 0:00:47]} ({Resist} 53. Qxe5 Qxc2 54. Qxc7 Qb1+ 55. Kh2 Qf5 $18) 53... e4 {[%emt 0:00:16]} 54. Qc4 {[%emt 0:00:20]} Qc6 {[%emt 0:00:11]} 55. Re2 {[%emt 0:00:57]} Re7 {[%emt 0:00:09]} 56. a4 {[%emt 0:00:24]} Re5 {[%emt 0:00:13]} 57. Qd4 {[%emt 0:00:57]} Re8 {[%emt 0:00:26]} 58. Re3 {[%emt 0:00:17]} Kh8 {[%emt 0:00:32]} 59. a5 {[%emt 0:00:27]} Qb5 {[%emt 0:00:16]} 60. Qc3 {[%emt 0:00:34]} Rc8 {[%emt 0:00:51]} 61. Rxe4 {[%emt 0:00:43]} Rxc5 {[%emt 0:00:14] [#]} 62. Re8+ $3 {[%emt 0:00:38]} Kh7 {[%emt 0:00:41]} 63. Qe1 {[%emt 0:00:29]} Rf5 $1 $11 {[%emt 0:00:32]} 64. Qe4 $2 {[%emt 0:00:16]} (64. g4 Rf4 65. Rd8) 64... Qc5 {[%emt 0:01:24]} 65. Qe1 $2 {[%emt 0:00:48]} ({White should try} 65. Qe2 $18 Qc1+ 66. Kg2 Qc6+ 67. f3) 65... Qxa5 {[%emt 0:00:26]} 66. Qb1 {[%emt 0:00:35]} Qc5 {[%emt 0:00:11]} 67. Re2 {[%emt 0:00:17]} Kh8 $16 {[%emt 0:00:17]} 68. Re8+ {[%emt 0:00:30]} Kh7 {[%emt 0:00:34]} 69. Re2 {[%emt 0:00:22]} Kh8 {[%emt 0:00:05]} 70. Re8+ {[%emt 0:00:44]} Kh7 {[%emt 0:00:15]} 71. Re3 {[%emt 0:00:35]} Kh8 {[%emt 0:00:07]} 72. Re8+ {[%emt 0:00:27]} 1/2-1/2